bitfinex/quotes_BTCUSD_20241021
["timestamp","ask_amount","ask_price","bid_price","bid_amount"]
[1729471421536,0.144395,69254.0,69253.0,0.21340188]
[1729471421757,0.144393,69256.0,69254.0,0.001]
[1729471422013,0.144393,69256.0,69254.0,0.04394381]
[1729471422262,0.144393,69256.0,69254.0,0.04294381]
[1729471422480,0.144393,69255.0,69254.0,0.04294381]
[1729471422693,0.144393,69255.0,69254.0,0.05786432]
[1729471423116,0.144393,69255.0,69254.0,0.08576834]
[1729471423355,0.144393,69255.0,69254.0,0.04394381]
[1729471423563,0.144393,69255.0,69254.0,0.04282485]
[1729471423776,0.144393,69255.0,69254.0,0.026653]
[1729471423992,0.144393,69255.0,69254.0,0.04382499]
[1729471424214,0.144393,69255.0,69254.0,0.0867688]
[1729471424434,0.144393,69255.0,69254.0,0.04382499]
[1729471424661,0.146393,69255.0,69254.0,0.04282499]
[1729471424881,0.144393,69255.0,69254.0,0.04382499]
[1729471425096,0.43317,69257.0,69254.0,0.21424995]
[1729471425324,0.005,69259.0,69255.0,0.0632908]
[1729471425544,0.14439,69257.0,69256.0,0.04182499]
[1729471426889,0.14439,69257.0,69256.0,0.04282499]
[1729471427760,0.149386,69259.0,69256.0,0.19178414]
[1729471427983,0.005,69259.0,69257.0,0.19078414]
[1729471428198,0.005,69259.0,69258.0,0.04182499]
[1729471428472,0.149385,69259.0,69258.0,0.21225457]
[1729471428694,0.005,69259.0,69258.0,0.21225457]
[1729471429568,0.005,69259.0,69258.0,0.21325457]
[1729471430225,0.149385,69259.0,69258.0,0.21325457]
[1729471430667,0.149385,69259.0,69258.0,0.22496433]
[1729471430891,0.149385,69259.0,69258.0,0.21425457]
[1729471431117,0.149385,69259.0,69258.0,0.2143014]
[1729471432713,0.149385,69259.0,69258.0,0.22502423]
[1729471432933,0.149385,69259.0,69258.0,0.2143014]
[1729471433165,0.149385,69259.0,69258.0,0.22502423]
[1729471433614,0.149385,69259.0,69258.0,0.2143014]
[1729471433827,0.149385,69259.0,69258.0,0.22502881]
[1729471434702,0.149385,69259.0,69258.0,0.15095915]
[1729471434919,0.149385,69259.0,69258.0,0.22508788]
[1729471435143,0.149385,69259.0,69258.0,0.20788616]
[1729471435355,0.149385,69259.0,69258.0,0.20358582]
[1729471435776,0.149385,69259.0,69258.0,0.22508824]
[1729471437925,0.151043,69259.0,69258.0,0.22508824]
[1729471441724,0.151043,69259.0,69258.0,0.26800697]
[1729471442578,0.146043,69259.0,69258.0,0.26800697]
[1729471442787,0.151043,69259.0,69258.0,0.26800697]
[1729471443854,0.151043,69259.0,69258.0,0.22508824]
[1729471444059,0.151043,69259.0,69258.0,0.22512891]
[1729471444261,0.151043,69259.0,69258.0,0.22292891]
[1729471444691,0.151043,69259.0,69258.0,0.28730701]
[1729471444899,0.151043,69259.0,69258.0,0.26263511]
[1729471445115,0.151043,69259.0,69258.0,0.27122416]
[1729471445547,0.151043,69259.0,69258.0,0.22295114]
[1729471445968,0.151043,69259.0,69258.0,0.20899454]
[1729471446596,0.151043,69259.0,69258.0,0.29497814]
[1729471446820,0.151043,69259.0,69258.0,0.28960975]
[1729471447038,0.151043,69259.0,69258.0,0.34123237]
[1729471447248,0.151043,69259.0,69258.0,0.27247027]
[1729471447556,0.151043,69259.0,69258.0,0.22297241]
[1729471447993,0.151043,69259.0,69258.0,0.30895601]
[1729471448228,0.151043,69259.0,69258.0,0.22297241]
[1729471448429,0.151043,69259.0,69258.0,0.30895601]
[1729471450836,0.151043,69259.0,69258.0,0.30896738]
[1729471451056,0.151043,69259.0,69258.0,0.33046329]
[1729471451057,0.001658,69259.0,69258.0,0.33046329]
[1729471451282,0.001658,69259.0,69258.0,0.23733853]
[1729471451497,0.001658,69259.0,69258.0,0.22298378]
[1729471451718,0.001658,69259.0,69258.0,0.23193564]
[1729471451928,0.001658,69259.0,69258.0,0.22297194]
[1729471452603,0.146043,69259.0,69258.0,0.22297194]
[1729471453027,0.141043,69259.0,69258.0,0.23732393]
[1729471453472,0.141043,69259.0,69258.0,0.22297194]
[1729471453945,0.141043,69259.0,69258.0,0.23732417]
[1729471454387,0.141043,69259.0,69258.0,0.17345989]
[1729471454604,0.144385,69259.0,69258.0,0.22010665]
[1729471454824,0.144385,69259.0,69258.0,0.22297728]
[1729471455037,0.144385,69259.0,69258.0,0.23733009]
[1729471455736,0.005,69263.0,69258.0,0.23733009]
[1729471455975,0.144379,69262.0,69259.0,0.08857094]
[1729471456206,0.144379,69262.0,69260.0,0.22317728]
[1729471456426,0.144379,69262.0,69261.0,0.07421813]
[1729471456651,0.144379,69262.0,69261.0,0.22317728]
[1729471457129,0.144379,69262.0,69261.0,0.3307936]
[1729471457861,0.144379,69262.0,69261.0,0.3317936]
[1729471458330,0.144379,69262.0,69261.0,0.32533775]
[1729471458556,0.144379,69262.0,69261.0,0.3317981]
[1729471458804,0.144379,69262.0,69261.0,0.3327981]
[1729471460502,0.144379,69262.0,69261.0,0.34550503]
[1729471460733,0.144379,69262.0,69261.0,0.23788871]
[1729471460972,0.144379,69262.0,69261.0,0.34551498]
[1729471461658,0.144379,69262.0,69261.0,0.34551309]
[1729471465176,0.144379,69262.0,69261.0,0.29599124]
[1729471465387,0.144379,69262.0,69261.0,0.34551357]
[1729471465806,0.144379,69262.0,69261.0,0.2378873]
[1729471466227,0.005,69263.0,69261.0,0.2378873]
[1729471466434,0.144379,69262.0,69261.0,0.01470693]
[1729471466686,0.144379,69262.0,69261.0,0.08892234]
[1729471467108,0.144379,69262.0,69261.0,0.08792234]
[1729471467320,0.144379,69262.0,69261.0,0.08692234]
[1729471467536,0.144379,69262.0,69261.0,0.08792234]
[1729471468000,0.005,69263.0,69261.0,0.08792234]
[1729471468213,0.1917,69275.0,69262.0,0.32032886]
[1729471468421,0.21563652,69269.0,69266.0,0.01434229]
[1729471468658,0.21563652,69272.0,69267.0,0.18135616]
[1729471468877,0.22063652,69272.0,69271.0,0.10756037]
[1729471469092,0.14436,69271.0,69270.0,0.10756037]
[1729471469343,0.144362,69270.0,69269.0,0.10756037]
[1729471469566,0.144362,69270.0,69269.0,0.18168965]
[1729471469976,0.144362,69270.0,69269.0,0.07412928]
[1729471470186,0.144362,69270.0,69269.0,0.18168965]
[1729471470404,0.144362,69270.0,69269.0,0.22308843]
[1729471470645,0.007,69271.0,69269.0,0.29840242]
[1729471470849,0.294721,69271.0,69270.0,0.27039998]
[1729471471053,0.294721,69271.0,69270.0,0.30910678]
[1729471471054,0.439081,69271.0,69270.0,0.30910678]
[1729471471267,0.439081,69271.0,69270.0,0.30910887]
[1729471471469,0.439081,69271.0,69270.0,0.29838802]
[1729471471677,0.438081,69271.0,69270.0,0.29838802]
[1729471472096,0.438081,69271.0,69270.0,0.32175239]
[1729471472306,0.438081,69271.0,69270.0,0.23572983]
[1729471472523,0.14936,69271.0,69270.0,0.22601059]
[1729471472731,0.14936,69271.0,69270.0,0.32275132]
[1729471473376,0.14936,69271.0,69270.0,0.22601059]
[1729471473582,0.14936,69271.0,69270.0,0.31203315]
[1729471473803,0.14936,69271.0,69270.0,0.32274973]
[1729471474017,0.14936,69271.0,69270.0,0.31303315]
[1729471474231,0.14936,69271.0,69270.0,0.22701059]
[1729471474487,0.14436,69271.0,69270.0,0.22701059]
[1729471474700,0.14936,69271.0,69270.0,0.22701059]
[1729471474934,0.14936,69271.0,69270.0,0.23772696]
[1729471475167,0.14936,69271.0,69270.0,0.32374952]
[1729471475410,0.14936,69271.0,69270.0,0.23772696]
[1729471475654,0.14936,69271.0,69270.0,0.22701059]
[1729471475655,0.15136,69271.0,69270.0,0.22701059]
[1729471475871,0.14936,69271.0,69270.0,0.22697861]
[1729471476078,0.15136,69271.0,69270.0,0.29147385]
[1729471476305,0.15136,69271.0,69270.0,0.26997495]
[1729471476538,0.14936,69271.0,69270.0,0.26997495]
[1729471476774,0.14936,69271.0,69270.0,0.24848066]
[1729471479996,0.14936,69271.0,69270.0,0.24848383]
[1729471482604,0.14436,69271.0,69270.0,0.24848383]
[1729471482858,0.14936,69271.0,69270.0,0.24848383]
[1729471483987,0.42486,69271.0,69270.0,0.24848383]
[1729471484259,0.14936,69271.0,69270.0,0.20548749]
[1729471484800,0.151018,69271.0,69270.0,0.20548749]
[1729471485029,0.151018,69271.0,69270.0,0.20548862]
[1729471486638,0.151018,69271.0,69270.0,0.20548998]
[1729471487770,0.151018,69271.0,69270.0,0.26998679]
[1729471488009,0.151018,69271.0,69270.0,0.20548998]
[1729471488491,0.151018,69271.0,69270.0,0.26998754]
[1729471488977,0.151018,69271.0,69270.0,0.24848632]
[1729471489204,0.151018,69271.0,69270.0,0.26998814]
[1729471490213,0.151018,69271.0,69270.0,0.2699811]
[1729471490678,0.151018,69271.0,69270.0,0.25924238]
[1729471491155,0.151018,69271.0,69270.0,0.26999483]
[1729471492317,0.151018,69271.0,69270.0,0.22699849]
[1729471493056,0.151018,69271.0,69270.0,0.26999196]
[1729471493294,0.151018,69271.0,69270.0,0.22699849]
[1729471493536,0.151018,69271.0,69270.0,0.26999367]
[1729471494465,0.151018,69271.0,69270.0,0.22699849]
[1729471496161,0.151018,69271.0,69270.0,0.27000088]
[1729471496393,0.151018,69271.0,69270.0,0.22699849]
[1729471496875,0.151018,69271.0,69270.0,0.23771977]
[1729471497112,0.146018,69271.0,69270.0,0.30221501]
[1729471497360,0.151018,69271.0,69270.0,0.25275372]
[1729471497597,0.151018,69271.0,69270.0,0.30226469]
[1729471498287,0.146018,69271.0,69270.0,0.30226469]
[1729471498760,0.001658,69271.0,69270.0,0.30226469]
[1729471499056,0.001658,69271.0,69270.0,0.23776945]
[1729471499057,0.146018,69271.0,69270.0,0.23776945]
[1729471499813,0.151018,69271.0,69270.0,0.30227274]
[1729471500020,0.146018,69271.0,69270.0,0.30227274]
[1729471500282,0.146018,69271.0,69270.0,0.30227552]
[1729471500283,0.151018,69271.0,69270.0,0.30227552]
[1729471500485,0.153018,69271.0,69270.0,0.30227552]
[1729471500718,0.413718,69271.0,69270.0,0.22704817]
[1729471500951,0.413718,69271.0,69270.0,0.20552166]
[1729471501214,0.413718,69271.0,69270.0,0.17755363]
[1729471501445,0.413718,69271.0,69270.0,0.22607297]
[1729471501709,0.413718,69271.0,69270.0,0.22507468]
[1729471501710,0.411718,69271.0,69270.0,0.22507468]
[1729471501933,0.411718,69271.0,69270.0,0.22607468]
[1729471502160,0.413718,69271.0,69270.0,0.22607468]
[1729471502389,0.413718,69271.0,69270.0,0.22707468]
[1729471502856,0.413718,69271.0,69270.0,0.27008193]
[1729471503087,0.413718,69271.0,69270.0,0.22707468]
[1729471503303,0.413718,69271.0,69270.0,0.22055994]
[1729471503537,0.413718,69271.0,69270.0,0.22706704]
[1729471504303,0.413718,69271.0,69270.0,0.27008284]
[1729471505017,0.413718,69271.0,69270.0,0.22706704]
[1729471506029,0.411718,69271.0,69270.0,0.22706704]
[1729471506257,0.411718,69271.0,69270.0,0.27008284]
[1729471506484,0.411718,69271.0,69270.0,0.07810789]
[1729471506778,0.413718,69271.0,69270.0,0.05657991]
[1729471507037,0.513718,69271.0,69270.0,0.01465465]
[1729471507253,0.513718,69271.0,69270.0,0.03535458]
[1729471507524,0.513718,69271.0,69270.0,0.01812791]
[1729471507762,0.513718,69271.0,69270.0,0.01712791]
[1729471508467,0.513718,69271.0,69270.0,0.01812791]
[1729471509203,0.513718,69271.0,69261.0,0.08603161]
[1729471509204,0.227779,69262.0,69261.0,0.06452371]
[1729471509434,0.002,69261.0,69259.0,0.06535271]
[1729471509655,0.146383,69260.0,69259.0,0.06538475]
[1729471509903,0.146383,69260.0,69259.0,0.11270029]
[1729471510120,0.146383,69260.0,69259.0,0.26165944]
[1729471510346,0.146383,69260.0,69259.0,0.2401374]
[1729471510602,0.146383,69260.0,69259.0,0.14978815]
[1729471510855,0.146383,69260.0,69259.0,0.17098531]
[1729471511093,0.146383,69260.0,69259.0,0.25275487]
[1729471511349,0.146383,69260.0,69259.0,0.275272]
[1729471511598,0.146383,69260.0,69259.0,0.040237]
[1729471511877,0.342183,69260.0,69259.0,0.040237]
[1729471513000,0.342183,69260.0,69259.0,0.04023456]
[1729471513252,0.342183,69260.0,69259.0,0.03923456]
[1729471514240,0.342183,69260.0,69259.0,0.03923093]
[1729471517330,0.447183,69260.0,69259.0,0.01345189]
[1729471517557,0.528083,69260.0,69259.0,0.01345189]
[1729471517808,0.528083,69260.0,69259.0,0.000829]
[1729471519842,0.528083,69260.0,69259.0,0.01802777]
[1729471521020,0.528083,69260.0,69259.0,0.02338097]
[1729471521232,0.528083,69260.0,69259.0,0.03412944]
[1729471521710,0.105,69260.0,69259.0,0.19165368]
[1729471521930,0.105,69260.0,69259.0,0.21314598]
[1729471522151,0.105,69260.0,69259.0,0.27951959]
[1729471522152,0.249383,69260.0,69259.0,0.27951959]
[1729471522369,0.249383,69260.0,69259.0,0.23651032]
[1729471522591,0.1,69260.0,69259.0,0.23651032]
[1729471523050,0.149383,69260.0,69259.0,0.23651032]
[1729471523264,0.249383,69260.0,69259.0,0.23651032]
[1729471523483,0.105,69260.0,69259.0,0.23651032]
[1729471523902,0.249383,69260.0,69259.0,0.23651032]
[1729471524827,0.249383,69260.0,69259.0,0.18390042]
[1729471525049,0.1,69265.0,69260.0,0.288766]
[1729471525267,0.144371,69266.0,69264.0,0.06447562]
[1729471525475,0.36000752,69266.0,69265.0,0.21231894]
[1729471525692,0.01846521,69267.0,69265.0,0.2894406]
[1729471525907,0.16783521,69267.0,69266.0,0.06335979]
[1729471526149,0.16783521,69267.0,69266.0,0.21231894]
[1729471526364,0.16783521,69267.0,69266.0,0.22496302]
[1729471526582,0.16283521,69267.0,69266.0,0.22496302]
[1729471526794,0.16783521,69267.0,69266.0,0.22496302]
[1729471527224,0.16783521,69267.0,69266.0,0.22495982]
[1729471527665,0.16983521,69267.0,69266.0,0.22495982]
[1729471527886,0.17083521,69267.0,69266.0,0.22495982]
[1729471528573,0.17283521,69267.0,69266.0,0.26794067]
[1729471528849,0.36613521,69267.0,69266.0,0.24644521]
[1729471529083,0.36413521,69267.0,69266.0,0.20346436]
[1729471529520,0.36213521,69267.0,69266.0,0.05450521]
[1729471529743,0.36279321,69267.0,69266.0,0.04594051]
[1729471529959,0.36279321,69267.0,69266.0,0.03329643]
[1729471530175,0.36479321,69267.0,69266.0,0.03329643]
[1729471531275,0.36479321,69267.0,69266.0,0.04185526]
[1729471531531,0.36479321,69267.0,69266.0,0.03329643]
[1729471532195,0.36479321,69267.0,69266.0,0.0225487]
[1729471532410,0.36479321,69267.0,69266.0,0.04186432]
[1729471533521,0.36479321,69267.0,69266.0,0.0333052]
[1729471535480,0.36479321,69267.0,69266.0,0.00535233]
[1729471535694,0.146375,69264.0,69263.0,0.04299064]
[1729471535901,0.146375,69264.0,69263.0,0.05690188]
[1729471536106,0.146375,69264.0,69263.0,0.11394155]
[1729471536788,0.146375,69264.0,69263.0,0.07095091]
[1729471537244,0.146375,69264.0,69263.0,0.04186765]
[1729471538193,0.146375,69264.0,69263.0,0.06337373]
[1729471538886,0.146375,69264.0,69263.0,0.04186765]
[1729471539115,0.24270523,69264.0,69263.0,0.02795641]
[1729471539361,0.251383,69260.0,69259.0,0.000829]
[1729471539581,0.251383,69260.0,69259.0,0.01474291]
[1729471539813,0.251383,69260.0,69259.0,0.03195289]
[1729471540048,0.432983,69260.0,69259.0,0.04270905]
[1729471540539,0.430983,69260.0,69259.0,0.04270905]
[1729471540791,0.1,69262.0,69259.0,0.1916682]
[1729471541027,0.249383,69260.0,69259.0,0.000829]
[1729471541257,0.249383,69260.0,69259.0,0.0749507]
[1729471541745,0.249383,69260.0,69259.0,0.0749485]
[1729471541978,0.249383,69260.0,69259.0,0.07494599]
[1729471542415,0.249383,69260.0,69259.0,0.06424071]
[1729471542633,0.249383,69260.0,69259.0,0.000829]
[1729471542845,0.249383,69260.0,69259.0,0.0642021]
[1729471543056,0.249383,69260.0,69259.0,0.07490082]
[1729471543282,0.144382,69261.0,69259.0,0.07489941]
[1729471543498,0.144383,69260.0,69259.0,0.0502912]
[1729471543703,0.144381,69261.0,69260.0,0.01719151]
[1729471543910,0.144383,69260.0,69259.0,0.000829]
[1729471544116,0.144383,69260.0,69259.0,0.07485341]
[1729471544407,0.005,69263.0,69259.0,0.07485341]
[1729471544619,0.144379,69262.0,69260.0,0.07402441]
[1729471544837,0.144381,69261.0,69259.0,0.01516587]
[1729471545045,0.144381,69261.0,69260.0,0.07402081]
[1729471548945,0.144381,69261.0,69260.0,0.22297996]
[1729471549602,0.146381,69261.0,69260.0,0.30892888]
[1729471549813,0.146381,69261.0,69260.0,0.14895915]
[1729471550020,0.146381,69261.0,69260.0,0.28747993]
[1729471550442,0.146381,69261.0,69260.0,0.2767801]
[1729471552436,0.146381,69261.0,69260.0,0.21231094]
[1729471552647,0.146381,69261.0,69260.0,0.25529708]
[1729471554862,0.146381,69261.0,69260.0,0.2337996]
[1729471555066,0.146381,69261.0,69260.0,0.25529828]
[1729471555275,0.146381,69261.0,69260.0,0.2337996]
[1729471556607,0.146381,69261.0,69260.0,0.25529827]
[1729471557495,0.146381,69261.0,69260.0,0.10633912]
[1729471558564,0.251381,69261.0,69260.0,0.04185431]
[1729471559022,0.251381,69261.0,69260.0,0.03329542]
[1729471560363,0.251381,69261.0,69260.0,0.02254668]
[1729471560575,0.251381,69261.0,69260.0,0.03329997]
[1729471560782,0.525781,69261.0,69260.0,0.03329997]
[1729471562687,0.525781,69261.0,69260.0,0.00534754]
[1729471562892,0.525781,69261.0,69260.0,0.03329465]
[1729471563099,0.525781,69261.0,69260.0,0.03329464]
[1729471565680,0.6367749,69261.0,69260.0,0.03329464]
[1729471565911,0.6367749,69261.0,69255.0,0.06447309]
[1729471565912,0.012,69249.0,69243.0,0.02149766]
[1729471566143,0.256421,69242.0,69241.0,0.0183864]
[1729471566371,0.288883,69232.0,69227.0,0.001634]
[1729471566594,0.14445,69228.0,69227.0,0.001634]
[1729471567019,0.14445,69228.0,69227.0,0.01019118]
[1729471567719,0.14445,69228.0,69227.0,0.001634]
[1729471568154,0.290874,69235.0,69227.0,0.001634]
[1729471568155,0.1,69241.0,69229.0,0.144446]
[1729471568366,0.21563652,69237.0,69230.0,0.14895915]
[1729471568585,0.21563652,69237.0,69231.0,0.288887]
[1729471568794,0.21563652,69237.0,69232.0,0.29339915]
[1729471568795,0.36006852,69237.0,69232.0,0.29339915]
[1729471569041,0.36006852,69237.0,69232.0,0.28739915]
[1729471569250,0.144435,69235.0,69232.0,0.14895915]
[1729471569456,0.005,69237.0,69232.0,0.14895915]
[1729471569662,0.1,69239.0,69233.0,0.144439]
[1729471569878,0.1,69239.0,69234.0,0.14895915]
[1729471569879,0.144435,69235.0,69234.0,0.14895915]
[1729471571552,0.144435,69235.0,69234.0,0.15306915]
[1729471573226,0.144435,69235.0,69234.0,0.16160083]
[1729471573435,0.144435,69235.0,69234.0,0.15306915]
[1729471576252,0.144435,69235.0,69234.0,0.16159386]
[1729471576467,0.144435,69235.0,69234.0,0.15306915]
[1729471577520,0.005,69240.0,69234.0,0.29750615]
[1729471577737,0.21563652,69240.0,69235.0,0.00852471]
[1729471577951,0.144433,69236.0,69234.0,0.00411]
[1729471578167,0.144433,69236.0,69235.0,0.00532394]
[1729471578823,0.144433,69236.0,69235.0,0.01384865]
[1729471579922,0.144429,69238.0,69235.0,0.01384865]
[1729471580156,0.144428,69239.0,69236.0,0.01384865]
[1729471580380,0.144428,69239.0,69237.0,0.00532394]
[1729471580586,0.144429,69239.0,69238.0,0.00532394]
[1729471580794,0.144429,69239.0,69238.0,0.15428309]
[1729471581625,0.144429,69239.0,69238.0,0.18215889]
[1729471581826,0.144429,69239.0,69238.0,0.16500455]
[1729471583366,0.144429,69239.0,69238.0,0.18215919]
[1729471583802,0.146429,69239.0,69238.0,0.19068381]
[1729471584006,0.146429,69239.0,69238.0,0.17352939]
[1729471584238,0.144429,69239.0,69238.0,0.19068394]
[1729471584450,0.146429,69239.0,69238.0,0.17352939]
[1729471585288,0.146429,69239.0,69238.0,0.19068702]
[1729471586359,0.144429,69239.0,69238.0,0.19068702]
[1729471586573,0.144429,69239.0,69238.0,0.17352939]
[1729471586793,0.144429,69239.0,69238.0,0.17352721]
[1729471587009,0.146429,69239.0,69238.0,0.19068876]
[1729471587450,0.146429,69239.0,69238.0,0.17684229]
[1729471587698,0.146429,69239.0,69238.0,0.1906932]
[1729471587910,0.510829,69239.0,69238.0,0.04173405]
[1729471588130,0.510829,69239.0,69238.0,0.0053269]
[1729471588131,0.799682,69239.0,69238.0,0.0053269]
[1729471588353,0.799682,69239.0,69237.0,0.00409]
[1729471588354,0.251429,69238.0,69237.0,0.00409]
[1729471589067,0.46706552,69238.0,69237.0,0.00409]
[1729471589277,0.107,69238.0,69234.0,0.000829]
[1729471589521,0.151435,69235.0,69234.0,0.000829]
[1729471589755,0.151435,69235.0,69234.0,0.01689064]
[1729471591113,0.151435,69235.0,69234.0,0.01156211]
[1729471591351,0.151435,69235.0,69234.0,0.01688988]
[1729471591582,0.153435,69235.0,69234.0,0.01688988]
[1729471591827,0.253435,69235.0,69234.0,0.02096988]
[1729471592303,0.253435,69235.0,69234.0,0.01023677]
[1729471592553,0.537535,69235.0,69234.0,0.02097072]
[1729471592798,0.6761427,69235.0,69234.0,0.004909]
[1729471593042,0.537535,69235.0,69234.0,0.004909]
[1729471593293,0.75417152,69235.0,69234.0,0.004909]
[1729471593562,0.543535,69235.0,69234.0,0.004909]
[1729471593803,0.542535,69235.0,69234.0,0.004909]
[1729471594022,0.6861127,69235.0,69234.0,0.004909]
[1729471594507,0.6841127,69235.0,69234.0,0.004909]
[1729471594766,0.6881127,69235.0,69234.0,0.004909]
[1729471595008,0.6901127,69235.0,69234.0,0.004909]
[1729471595238,0.546535,69235.0,69234.0,0.004909]
[1729471595698,0.555535,69235.0,69234.0,0.004909]
[1729471595930,0.549535,69235.0,69234.0,0.004909]
[1729471596388,0.557535,69235.0,69234.0,0.004909]
[1729471597849,0.547535,69235.0,69234.0,0.004909]
[1729471598567,0.268435,69235.0,69234.0,0.004909]
[1729471599319,0.260435,69235.0,69234.0,0.004909]
[1729471599582,0.009,69235.0,69234.0,0.34007053]
[1729471599812,0.009,69235.0,69234.0,0.37221398]
[1729471600302,0.009,69235.0,69234.0,0.22777698]
[1729471600527,0.144429,69238.0,69234.0,0.22777698]
[1729471600771,0.144429,69238.0,69235.0,0.22286798]
[1729471601024,0.144429,69238.0,69236.0,0.07390883]
[1729471601274,0.144429,69238.0,69237.0,0.19072453]
[1729471601520,0.290516,69239.0,69237.0,0.19072453]
[1729471601521,0.001658,69239.0,69238.0,0.144429]
[1729471601818,0.001658,69239.0,69238.0,0.30303408]
[1729471602046,0.001658,69239.0,69238.0,0.183126]
[1729471602273,0.001658,69239.0,69238.0,0.17786263]
[1729471602522,0.001658,69239.0,69238.0,0.21101439]
[1729471602773,0.001658,69239.0,69238.0,0.22818152]
[1729471603031,0.001658,69239.0,69238.0,0.22073818]
[1729471603288,0.001658,69239.0,69238.0,0.23139683]
[1729471603527,0.146085,69239.0,69238.0,0.23139683]
[1729471603977,0.146085,69239.0,69238.0,0.22073818]
[1729471604237,0.146085,69239.0,69238.0,0.21752248]
[1729471604483,0.146085,69239.0,69238.0,0.22073766]
[1729471604937,0.146085,69239.0,69238.0,0.20357053]
[1729471605407,0.146085,69239.0,69238.0,0.20035535]
[1729471605408,0.001658,69239.0,69238.0,0.20035535]
[1729471605631,0.146085,69239.0,69238.0,0.18650129]
[1729471605876,0.146085,69239.0,69238.0,0.20035335]
[1729471608017,0.148085,69239.0,69238.0,0.20035335]
[1729471608237,0.146085,69239.0,69238.0,0.20035335]
[1729471609201,0.148085,69239.0,69238.0,0.20035335]
[1729471609902,0.146085,69239.0,69238.0,0.20035335]
[1729471610131,0.148085,69239.0,69238.0,0.20035335]
[1729471612061,0.148085,69239.0,69238.0,0.18318621]
[1729471612311,0.148085,69239.0,69238.0,0.20035262]
[1729471612561,0.148085,69239.0,69238.0,0.18318621]
[1729471612787,0.148085,69239.0,69238.0,0.20035223]
[1729471613544,0.148085,69239.0,69238.0,0.20035008]
[1729471613815,0.148085,69239.0,69238.0,0.20034985]
[1729471614051,0.148085,69239.0,69238.0,0.16393194]
[1729471614284,0.148085,69239.0,69238.0,0.20035059]
[1729471615668,0.148085,69239.0,69238.0,0.17466042]
[1729471615897,0.148085,69239.0,69238.0,0.20035245]
[1729471616799,0.148085,69239.0,69238.0,0.17466042]
[1729471617024,0.148085,69239.0,69238.0,0.20035293]
[1729471617459,0.148085,69239.0,69238.0,0.20035239]
[1729471618134,0.148085,69239.0,69238.0,0.17466091]
[1729471619038,0.148085,69239.0,69238.0,0.20035749]
[1729471619259,0.292758,69239.0,69237.0,0.00193012]
[1729471619514,0.251429,69238.0,69237.0,0.00193012]
[1729471621499,0.246429,69238.0,69237.0,0.00193012]
[1729471621738,0.251429,69238.0,69237.0,0.00192]
[1729471623992,0.244429,69238.0,69237.0,0.15087915]
[1729471624204,0.144429,69238.0,69237.0,0.22687915]
[1729471624646,0.001658,69239.0,69237.0,0.22687915]
[1729471624647,0.146086,69239.0,69237.0,0.26975216]
[1729471624850,0.144429,69238.0,69237.0,0.12079301]
[1729471625059,0.001658,69239.0,69237.0,0.12079301]
[1729471625273,0.001658,69239.0,69237.0,0.12162201]
[1729471625506,0.146085,69239.0,69238.0,0.14895915]
[1729471625713,0.001658,69239.0,69238.0,0.14895915]
[1729471626356,0.146085,69239.0,69238.0,0.14895915]
[1729471627407,0.146085,69239.0,69238.0,0.1596206]
[1729471627617,0.146085,69239.0,69238.0,0.15963243]
[1729471627823,0.144429,69238.0,69237.0,0.002749]
[1729471628033,0.144429,69238.0,69237.0,0.15170815]
[1729471628241,0.146429,69238.0,69237.0,0.15170815]
[1729471629298,0.146429,69238.0,69237.0,0.16025413]
[1729471629521,0.146429,69238.0,69237.0,0.17746492]
[1729471629937,0.448329,69238.0,69237.0,0.02850577]
[1729471630394,0.448329,69238.0,69237.0,0.01129498]
[1729471630606,0.60228815,69238.0,69237.0,0.002749]
[1729471630816,0.60228815,69238.0,69237.0,0.029749]
[1729471631026,0.530229,69238.0,69237.0,0.029749]
[1729471632443,0.531229,69238.0,69237.0,0.029749]
[1729471633461,0.533229,69238.0,69237.0,0.029749]
[1729471634281,0.68218815,69238.0,69237.0,0.003219]
[1729471634490,0.8541473,69238.0,69237.0,0.003219]
[1729471634971,0.70518815,69238.0,69237.0,0.003219]
[1729471636939,0.71518815,69238.0,69237.0,0.003219]
[1729471638176,0.521843,69231.0,69230.0,0.03400191]
[1729471638911,0.521843,69231.0,69230.0,0.00600191]
[1729471638912,0.554843,69231.0,69230.0,0.00600191]
[1729471639430,0.74358467,69231.0,69230.0,0.00600191]
[1729471639652,0.74858467,69231.0,69230.0,0.00600191]
[1729471639853,0.75458467,69231.0,69230.0,0.00600191]
[1729471640127,0.75658467,69231.0,69230.0,0.00600191]
[1729471640377,0.75458467,69231.0,69230.0,0.00600191]
[1729471640632,0.74858467,69231.0,69230.0,0.00600191]
[1729471641122,0.74558467,69231.0,69230.0,0.00600191]
[1729471641358,0.548154,69226.0,69215.0,0.01074122]
[1729471641588,0.548154,69226.0,69200.0,0.48310221]
[1729471641589,0.146483,69212.0,69211.0,0.00851907]
[1729471641832,0.151483,69212.0,69211.0,0.02458396]
[1729471642083,0.251483,69212.0,69211.0,0.02458396]
[1729471642353,0.251483,69212.0,69211.0,0.01606489]
[1729471643781,0.249483,69212.0,69211.0,0.01606489]
[1729471644252,0.149483,69212.0,69211.0,0.17521652]
[1729471644487,0.149483,69212.0,69211.0,0.17538652]
[1729471644488,0.144483,69212.0,69211.0,0.17538652]
[1729471645607,0.144483,69212.0,69211.0,0.18390299]
[1729471645858,0.144483,69212.0,69211.0,0.17538652]
[1729471646116,0.144477,69215.0,69211.0,0.32838699]
[1729471646344,0.144477,69215.0,69212.0,0.19072542]
[1729471646587,0.1,69216.0,69213.0,0.02458136]
[1729471646815,0.1,69216.0,69214.0,0.17354051]
[1729471647036,0.244477,69215.0,69214.0,0.15747358]
[1729471647263,0.244477,69215.0,69214.0,0.16500814]
[1729471647715,0.244477,69215.0,69214.0,0.17519575]
[1729471647944,0.244477,69215.0,69214.0,0.19443943]
[1729471648171,0.244477,69215.0,69214.0,0.18592461]
[1729471648398,0.251477,69215.0,69214.0,0.19443943]
[1729471649371,0.251477,69215.0,69214.0,0.18592461]
[1729471649612,0.252477,69215.0,69214.0,0.18592461]
[1729471650293,0.252477,69215.0,69214.0,0.18675361]
[1729471650508,0.249477,69215.0,69214.0,0.18675361]
[1729471651239,0.249477,69215.0,69214.0,0.18675659]
[1729471652360,0.251477,69215.0,69214.0,0.18675659]